bitfinex-derivatives/quotes_SOLF0:USTF0_20250625
["timestamp","ask_amount","ask_price","bid_price","bid_amount"]
[1750822519303,5.07526614,146.07,146.05,6.8432]
[1750822519504,6.8422,146.08,146.05,6.8432]
[1750822519808,6.8422,146.08,146.02,3.36898804]
[1750822519809,5.07526614,146.07,146.04,6.8437]
[1750822520001,6.8422,146.08,146.04,6.8437]
[1750822520203,6.8422,146.08,146.05,6.8433]
[1750822520405,5.06702968,146.07,146.05,6.8433]
[1750822520599,6.8422,146.08,146.05,6.8433]
[1750822520796,5.06716784,146.07,146.05,6.8433]
[1750822521002,6.8422,146.08,146.05,6.8433]
[1750822521608,37.60898804,146.1,146.05,6.8433]
[1750822521609,6.8417,146.09,146.05,6.8433]
[1750822521809,5.06747378,146.08,146.05,6.8433]
[1750822522008,37.60898804,146.1,146.02,3.36898804]
[1750822522009,44.45018804,146.1,146.06,6.8429]
[1750822522219,9.7213504,146.09,146.02,11.86275884]
[1750822522406,5.05261721,146.08,146.02,11.86275884]
[1750822522607,6.842,146.08,146.04,6.8437]
[1750822524114,10.21098804,146.08,146.04,6.8437]
[1750822524507,6.8425,146.07,146.03,6.8441]
[1750822525012,10.21118804,146.08,146.04,6.8435]
[1750822525312,5.03642387,146.07,146.01,36.5555]
[1750822525604,10.21118804,146.08,146.04,6.8435]
[1750822525605,14.86087904,146.08,146.04,6.8435]
[1750822526113,10.21118804,146.08,146.04,6.8435]
[1750822526413,10.21118804,146.08,146.05,6.8433]
[1750822527501,3.36898804,146.08,146.05,6.8433]
[1750822529215,10.21108804,146.08,146.05,6.8433]
[1750822530111,6.8426,146.07,146.04,6.8436]
[1750822532514,5.02981905,146.07,146.03,6.8442]
[1750822532724,8.39880709,146.08,146.01,36.5555]
[1750822532923,6.8428,146.07,146.03,6.8441]
[1750822533219,34.12,146.06,146.03,6.8441]
[1750822533618,34.12,146.06,146.04,6.8438]
[1750822535013,34.12,146.06,146.03,6.8441]
[1750822536023,40.963,146.06,146.03,6.8441]
[1750822537719,34.12,146.06,146.01,2.3155]
[1750822538423,34.12,146.06,146.04,6.8436]
[1750822538822,34.12,146.06,146.01,5.68448804]
[1750822539026,34.12,146.06,146.05,6.8434]
[1750822539225,34.12,146.09,146.03,3.36898804]
[1750822540028,34.12,146.09,146.07,6.8423]
[1750822541023,40.9616,146.09,146.06,6.8428]
[1750822541730,6.842,146.08,146.05,6.8432]
[1750822543021,40.9617,146.09,146.05,6.8432]
[1750822543222,40.9617,146.09,146.06,6.8427]
[1750822546931,6.842,146.08,146.05,6.8432]
[1750822548740,34.12,146.09,146.04,6.8438]
[1750822548741,6.8425,146.07,146.04,6.8438]
[1750822549637,3.36898804,146.08,146.01,14.17825884]
[1750822550136,6.8427,146.07,146.01,14.17825884]
[1750822550438,6.8427,146.07,146.04,6.8436]
[1750822550638,10.21118804,146.08,146.01,14.17825884]
[1750822550835,10.21118804,146.08,146.02,8.4937708]
[1750822551034,10.21118804,146.08,146.05,6.8431]
[1750822551335,40.9617,146.09,146.03,8.4937708]
[1750822551529,40.9617,146.09,146.06,6.8429]
[1750822552437,6.842,146.08,146.05,6.8432]
[1750822552936,34.12,146.09,146.03,3.36898804]
[1750822553135,34.14,146.12,146.05,3.36898804]
[1750822553442,9.65183804,146.11,146.06,2.3339]
[1750822553641,34.14,146.12,146.06,2.3339]
[1750822553936,9.65883856,146.11,146.08,6.8417]
[1750822554142,34.14,146.12,146.08,6.8417]
[1750822554338,16.4995709,146.11,146.08,6.8417]
[1750822554538,6.8408,146.11,146.08,6.8417]
[1750822556445,6.8411,146.1,146.07,6.8423]
[1750822557644,6.8411,146.1,146.06,6.8427]
[1750822557645,6.8416,146.09,146.06,6.8427]
[1750822559531,9.59773779,146.08,146.06,6.8427]
[1750822559733,6.8416,146.09,146.06,6.8427]
[1750822559941,9.59773779,146.08,146.06,6.8427]
[1750822560146,6.8416,146.09,146.06,6.8427]
[1750822560348,9.5978572,146.08,146.06,6.8427]
[1750822560536,6.8416,146.09,146.06,6.8427]
[1750822560843,9.59807939,146.08,146.06,6.8427]
[1750822561047,6.8416,146.09,146.06,6.8427]
[1750822561244,9.59790375,146.08,146.06,6.8427]
[1750822561445,6.8416,146.09,146.05,6.8432]
[1750822561744,16.44019161,146.08,146.05,6.8432]
[1750822561933,6.8422,146.08,146.05,6.8432]
[1750822562140,9.59832282,146.07,146.04,6.8439]
[1750822562445,44.35128804,146.08,146.04,6.8439]
[1750822562641,9.60914284,146.07,146.04,6.8439]
[1750822562838,44.35128804,146.08,146.04,6.8439]
[1750822563042,16.45164284,146.07,146.04,6.8439]
[1750822563240,6.8425,146.07,146.04,6.8439]
[1750822564543,44.35108804,146.08,146.05,6.8433]
[1750822564746,9.61000917,146.07,146.05,6.8433]
[1750822564948,4.94186125,146.07,146.05,6.8433]
[1750822565243,44.35108804,146.08,146.05,6.8433]
[1750822565445,4.66815335,146.07,146.05,6.8433]
[1750822565646,44.35108804,146.08,146.05,6.8433]
[1750822565846,4.66815335,146.07,146.05,6.8433]
[1750822566041,44.35108804,146.08,146.05,6.8433]
[1750822566248,4.66815335,146.07,146.05,6.8433]
[1750822566436,34.14,146.08,146.04,11.89331135]
[1750822566639,34.14,146.11,146.05,8.52432331]
[1750822566839,4.66852377,146.1,146.05,8.52432331]
[1750822567036,34.14,146.11,146.06,8.52432331]
[1750822567252,4.66850904,146.1,146.07,8.52432331]
[1750822567446,6.8413,146.1,146.07,15.36672331]
[1750822567643,6.8413,146.1,146.07,6.8424]
[1750822567844,6.8413,146.1,146.07,15.36672331]
[1750822568555,6.8413,146.1,146.07,6.8424]
[1750822569458,6.8416,146.09,146.06,15.36702331]
[1750822569650,3.36898804,146.09,146.05,8.52432331]
[1750822570045,11.49424517,146.08,146.04,15.36782331]
[1750822570239,6.8423,146.08,146.05,8.52432331]
[1750822570645,40.9823,146.08,146.04,15.36782331]
[1750822571452,40.9823,146.08,146.05,6.8432]
[1750822575650,4.9480812,146.07,146.05,6.8432]
[1750822575849,40.9823,146.08,146.05,6.8432]
[1750822576053,4.9480812,146.07,146.05,6.8432]
[1750822576256,40.9823,146.08,146.05,6.8432]
[1750822576450,4.9480812,146.07,146.05,6.8432]
[1750822576652,40.9823,146.08,146.05,6.8432]
[1750822576852,4.94841949,146.07,146.05,6.8432]
[1750822577151,40.9823,146.08,146.05,6.8432]
[1750822577353,4.94841949,146.07,146.05,6.8432]
[1750822577651,40.9823,146.08,146.05,6.8432]
[1750822577852,4.94947257,146.07,146.05,6.8432]
[1750822578054,40.9823,146.08,146.05,6.8432]
[1750822578251,4.94947257,146.07,146.05,6.8432]
[1750822578451,40.9823,146.08,146.05,6.8432]
[1750822578755,4.94976651,146.07,146.05,6.8432]
[1750822578952,40.9823,146.08,146.05,6.8432]
[1750822579157,4.94976651,146.07,146.05,6.8432]
[1750822579359,40.9823,146.08,146.05,6.8432]
[1750822579660,9.61052839,146.07,146.05,15.36752331]
[1750822579854,40.9823,146.08,146.05,6.8432]
[1750822580052,9.59758219,146.07,146.05,6.8432]
[1750822580361,40.9823,146.08,146.05,6.8432]
[1750822580555,9.59757683,146.07,146.05,6.8432]
[1750822580756,40.9823,146.08,146.05,6.8432]
[1750822580957,9.59756331,146.07,146.05,6.8432]
[1750822581160,40.9823,146.08,146.05,6.8432]
[1750822581361,9.59759987,146.07,146.05,6.8432]
[1750822581662,9.60122109,146.06,146.05,6.8432]
[1750822584354,11.76027722,146.06,146.05,6.8432]
[1750822584662,11.76109998,146.06,146.05,6.8432]
[1750822584863,11.76109998,146.06,146.04,15.36802331]
[1750822585064,2.15905613,146.06,146.04,15.36802331]
[1750822588458,11.75890448,146.05,146.03,8.52432331]
[1750822588655,2.15905613,146.05,146.03,8.52432331]
[1750822589160,34.14,146.08,146.03,10.68337944]
[1750822589365,4.94366187,146.07,146.06,2.15808795]
[1750822589560,4.94366187,146.07,146.05,8.52432331]
[1750822589778,2.15808795,146.09,146.05,10.68241126]
[1750822589970,11.75478036,146.08,146.05,8.52432331]
[1750822590271,6.8418,146.09,146.05,8.52432331]
[1750822590272,4.94302704,146.07,146.05,8.52432331]
[1750822590573,6.8418,146.09,146.05,8.52432331]
[1750822590773,9.59664784,146.08,146.06,6.8427]
[1750822590974,4.94298401,146.07,146.05,8.52432331]
[1750822591179,10.21406297,146.1,146.05,8.52432331]
[1750822591372,9.59656725,146.09,146.05,8.52432331]
[1750822591569,9.59656725,146.08,146.05,8.52432331]
[1750822591775,37.41177532,146.14,146.07,3.37177532]
[1750822591976,40.8795,146.14,146.11,6.8403]
[1750822592380,37.41177532,146.14,146.09,8.51385784]
[1750822592676,37.41177532,146.14,146.1,6.841]
[1750822593078,4.9409413,146.13,146.1,6.841]
[1750822593272,4.9409413,146.12,146.1,6.841]
[1750822593473,37.41177532,146.14,146.1,6.841]
[1750822594279,44.25127532,146.14,146.1,6.841]
[1750822594976,6.8397,146.13,146.1,6.841]
[1750822595680,44.25107532,146.14,146.11,6.8405]
[1750822595873,4.96006414,146.13,146.11,6.8405]
[1750822596178,4.96006414,146.12,146.09,8.51385784]
[1750822596379,34.04,146.14,146.08,5.66167532]
[1750822596579,4.95999853,146.13,146.08,5.66167532]
[1750822596781,4.95999853,146.12,146.11,6.8406]
[1750822596978,34.04,146.14,146.08,5.66167532]
[1750822597178,4.9563073,146.13,146.08,5.66167532]
[1750822597383,34.04,146.14,146.12,6.8399]
[1750822597580,4.95630684,146.13,146.12,6.8399]
[1750822598083,4.95630684,146.13,146.08,5.66167532]
[1750822598084,4.95630684,146.13,146.08,2.2899]
[1750822598283,37.41177532,146.14,146.08,2.2899]
[1750822598483,4.95345723,146.13,146.08,2.2899]
[1750822598784,6.84,146.13,146.09,6.8411]
[1750822599475,4.96094852,146.12,146.09,6.8411]
[1750822599675,6.84,146.13,146.09,6.8411]
[1750822600677,37.41177532,146.14,146.06,20.73196305]
[1750822600873,3.37177532,146.12,146.04,12.75958773]
[1750822601078,4.95980807,146.11,146.04,12.75958773]
[1750822601381,6.8409,146.11,146.07,6.8424]
[1750822601779,4.95984901,146.1,146.04,12.75958773]
[1750822601983,6.8409,146.11,146.04,12.75958773]
[1750822602281,4.96011436,146.1,146.04,12.75958773]
[1750822602482,10.21197532,146.12,146.04,12.75958773]
[1750822602787,4.96007911,146.11,146.04,12.75958773]
[1750822603087,10.21197532,146.12,146.08,6.8417]
[1750822603385,4.95992464,146.11,146.04,12.75958773]
[1750822603682,10.21197532,146.12,146.04,12.75958773]
[1750822603884,4.96000146,146.11,146.04,12.75958773]
[1750822604081,10.21197532,146.12,146.04,12.75958773]
[1750822604281,4.95960875,146.11,146.04,12.75958773]
[1750822604486,10.21197532,146.12,146.04,12.75958773]
[1750822604680,4.95955714,146.11,146.04,12.75958773]
[1750822604881,10.21197532,146.12,146.04,12.75958773]
[1750822605188,4.95954788,146.11,146.09,6.8415]
[1750822605485,10.21197532,146.12,146.09,6.8415]
[1750822605779,4.94834122,146.11,146.09,6.8415]
[1750822605988,10.21197532,146.12,146.09,6.8415]
[1750822606185,4.94834122,146.11,146.09,6.8415]
[1750822606387,10.21197532,146.12,146.09,6.8415]
[1750822606589,4.94838612,146.11,146.09,6.8415]
[1750822606882,10.21197532,146.12,146.09,6.8415]
[1750822607082,4.94839577,146.11,146.09,6.8415]
[1750822607290,3.37177532,146.12,146.1,6.8409]
[1750822607484,37.41177532,146.14,146.07,8.50751348]
[1750822607786,11.78831666,146.13,146.1,6.8411]
[1750822607982,4.94831666,146.12,146.1,6.8411]
[1750822608184,4.94831666,146.11,146.1,6.8411]
[1750822610577,4.96857948,146.11,146.1,6.8411]
[1750822611891,4.96857948,146.11,146.05,50.17136305]
[1750822612193,3.37177532,146.12,146.05,37.41177532]
[1750822612489,4.9686426,146.11,146.05,37.41177532]
[1750822612693,6.8407,146.11,146.08,6.8418]
[1750822612885,4.96882477,146.1,146.08,6.8418]
[1750822613087,6.8407,146.11,146.08,6.8418]
[1750822613290,4.96882477,146.1,146.08,6.8418]
[1750822613491,6.8407,146.11,146.08,6.8418]
[1750822613690,4.96840963,146.1,146.08,6.8418]
[1750822613891,6.8407,146.11,146.08,6.8418]
[1750822614189,4.96840916,146.1,146.08,6.8418]
[1750822614388,6.8411,146.1,146.07,6.8422]
[1750822614785,40.8611,146.1,146.07,6.8422]
[1750822616388,40.8611,146.1,146.03,5.66031327]
[1750822616389,8.34016731,146.09,146.05,8.50860729]
[1750822616590,8.34016731,146.09,146.03,12.75958773]
[1750822616591,3.37231327,146.07,146.03,8.50860729]
[1750822617094,3.37231327,146.07,146.04,6.8438]
[1750822622300,10.21606079,146.08,146.04,6.8438]
[1750822623799,10.21606079,146.08,146.05,6.8434]
[1750822623993,6.8426,146.07,146.03,8.50860729]
[1750822624988,37.41376079,146.06,146.02,8.50860729]
[1750822625186,37.41376079,146.06,145.99,36.4192]
[1750822625187,3.37376079,146.04,145.99,10.90780729]
[1750822625493,37.41376079,146.04,145.99,15.35460729]
[1750822625897,37.41376079,146.04,145.99,6.846]
[1750822626186,6.8451,146.02,145.99,6.846]
[1750822626597,6.8445,146.03,145.99,6.846]
[1750822627195,44.25786079,146.04,146.0,6.8455]
[1750822627790,5.58336079,146.06,145.98,11.88236808]
[1750822627991,34.04,146.06,146.0,11.88236808]
[1750822628401,34.04,146.06,146.0,14.23076808]
[1750822629002,6.8434,146.05,146.02,6.8446]
[1750822629191,37.41376079,146.06,146.02,6.8446]
[1750822629395,6.8446,146.03,146.0,9.1939]
[1750822629701,6.8446,146.03,146.0,6.8455]
[1750822631900,34.04,146.06,145.98,3.37376079]
[1750822632098,34.04,146.06,145.98,16.13334852]
[1750822632305,34.04,146.06,146.04,6.8438]
[1750822632805,34.04,146.06,145.99,3.37376079]
[1750822633301,40.8834,146.06,146.02,6.8445]
[1750822633695,40.8834,146.06,145.99,3.37376079]
[1750822633901,40.8834,146.06,146.03,6.8443]
[1750822634796,6.8434,146.05,146.02,6.8446]
[1750822635210,34.04,146.06,145.99,3.37376079]
[1750822635407,40.8832,146.06,146.03,6.8443]
[1750822636309,6.8434,146.05,146.03,6.8443]
[1750822637211,40.8832,146.06,146.03,6.8443]
[1750822637506,40.8832,146.06,146.04,6.8437]
[1750822637710,34.04,146.06,146.04,6.8437]
[1750822638012,34.04,146.06,146.03,6.8441]
[1750822638710,40.8832,146.06,146.03,6.8441]
[1750822639816,40.8832,146.06,146.04,6.8438]
[1750822640412,34.04,146.06,146.04,6.8438]
[1750822641314,40.883,146.06,146.04,6.8438]
[1750822641612,40.883,146.06,146.03,6.8441]
[1750822642624,40.883,146.06,146.04,6.8438]
[1750822643105,40.883,146.06,146.01,2.2596]
[1750822643302,40.883,146.06,146.03,6.8441]
[1750822644519,40.883,146.06,146.04,6.8438]
[1750822644922,40.883,146.06,146.01,2.2596]
[1750822645216,40.883,146.06,146.03,6.8441]
[1750822646222,34.04,146.06,146.01,2.2596]
[1750822646415,34.04,146.06,146.01,5.63336079]
[1750822648217,34.04,146.06,146.05,6.8434]
[1750822648613,34.04,146.06,146.01,5.63336079]
[1750822649120,34.04,146.06,146.04,6.8435]
[1750822649318,34.04,146.06,146.01,5.63336079]
[1750822650123,34.04,146.06,146.05,6.8434]
[1750822655923,6.8423,146.08,146.05,6.8434]
[1750822656110,4.92761219,146.07,146.06,6.8429]
[1750822656317,6.8431,146.06,146.01,15.00196125]
[1750822656516,8.30137298,146.07,146.01,15.00196125]
[1750822656517,3.37376079,146.07,146.01,15.00196125]
[1750822657122,10.21666079,146.07,146.01,15.00196125]
[1750822657616,6.843,146.06,146.03,6.8441]
[1750822659525,40.863,146.06,146.03,6.8441]
[1750822664620,34.02,146.06,146.03,6.8441]
[1750822664825,34.02,146.06,146.0,38.7193]
[1750822664826,3.37461755,146.04,146.0,12.74236125]
[1750822665025,3.37461755,146.04,145.97,34.02]
[1750822665026,3.37461755,146.04,145.99,12.74236125]
[1750822665535,6.8446,146.03,146.0,6.8455]
[1750822666130,6.8449,146.02,145.99,6.846]
[1750822666427,3.37562448,146.04,145.98,12.74236125]
[1750822666634,6.8446,146.03,146.0,6.8457]
[1750822667628,6.8448,146.02,146.0,6.8457]
[1750822667829,3.37562448,146.04,146.0,6.8457]
[1750822668538,6.8446,146.03,146.0,6.8457]
[1750822669533,6.8446,146.03,145.97,46.76236125]
[1750822669534,6.8449,146.02,145.99,6.846]
[1750822671342,6.8446,146.03,146.0,6.8457]
[1750822672542,6.8446,146.03,146.0,15.36921597]
[1750822673542,10.21972448,146.04,146.01,6.8452]
[1750822674440,10.21972448,146.04,146.01,15.36871597]
[1750822674939,6.8444,146.03,146.01,8.52351597]
[1750822675143,6.8444,146.03,146.0,15.36911597]
[1750822676147,6.8441,146.04,146.0,15.36911597]
[1750822679441,6.8446,146.03,146.0,15.36911597]
[1750822679747,6.8446,146.03,146.0,6.8456]
[1750822679949,3.37562448,146.05,145.99,15.36961597]
[1750822680149,7.49175816,146.05,145.99,15.36961597]
[1750822680548,7.49175816,146.05,145.99,6.8461]
[1750822680747,3.37562448,146.03,145.97,12.74236125]
[1750822680950,34.02,146.02,145.96,12.74236125]
[1750822681449,6.8458,146.0,145.97,6.8469]
[1750822681842,34.02,146.02,145.96,12.74236125]
[1750822682044,40.865,146.02,145.98,6.8463]
[1750822682347,34.02,146.02,145.98,6.8463]
[1750822683144,6.8453,146.01,145.98,6.8463]
[1750822683453,34.02,146.02,145.99,6.8461]
[1750822683752,40.8651,146.02,145.99,6.8461]
[1750822684550,6.8453,146.01,145.98,6.8465]
[1750822685651,6.8453,146.01,145.98,15.36285876]
[1750822686258,9.00604208,146.01,145.98,15.36285876]
[1750822687954,6.8458,146.0,145.98,15.36285876]
[1750822688546,9.00694208,145.99,145.97,8.51635876]
[1750822688755,2.16074208,145.98,145.96,8.51635876]
[1750822689053,2.16074208,145.97,145.95,8.51635876]
[1750822689359,2.16074208,145.96,145.94,8.51635876]
[1750822689552,9.00834208,145.96,145.94,8.51635876]
[1750822690153,9.00834208,145.96,145.93,15.36515876]
[1750822690351,6.8476,145.96,145.93,15.36515876]
[1750822691053,6.8474,145.97,145.93,15.36515876]
[1750822691858,6.8476,145.96,145.93,15.36515876]
[1750822692261,6.8476,145.96,145.93,6.8488]
[1750822693466,3.37852187,145.96,145.92,8.51635876]
[1750822693667,3.37852187,145.96,145.9,8.51635876]
[1750822693969,3.37852187,145.96,145.9,6.8502]
[1750822694772,34.02,145.98,145.87,2.2696]
[1750822694773,3.37852187,145.92,145.87,2.2696]
[1750822695065,37.41852187,145.92,145.87,2.2696]
[1750822695265,44.26822187,145.92,145.88,6.8511]
[1750822696765,37.41852187,145.92,145.87,6.8517]
[1750822697463,6.8504,145.91,145.87,6.8517]
[1750822700364,6.8504,145.91,145.85,36.2251]
[1750822700365,37.41852187,145.92,145.85,39.60362187]
[1750822700568,34.04,145.92,145.85,39.60362187]
[1750822700763,34.04,145.92,145.87,3.37852187]
[1750822700970,34.04,145.95,145.88,4.5763]
[1750822701762,2.2342,145.99,145.91,3.37852187]
[1750822701964,37.41852187,145.98,145.91,3.37852187]
[1750822702364,6.8472,145.97,145.94,6.8483]
[1750822705570,37.41852187,145.98,145.95,6.8478]
[1750822706168,37.41852187,145.98,145.96,6.8475]
[1750822706369,34.04,145.98,145.92,2.2533]
[1750822706773,34.04,145.98,145.93,3.37852187]
[1750822706974,34.04,145.98,145.97,6.8472]
[1750822707676,34.22,146.01,145.94,2.4192]
[1750822707877,34.22,146.01,145.94,4.6156]
[1750822708084,34.22,146.01,145.95,3.37852187]
[1750822708668,34.22,146.01,145.98,6.8464]
[1750822708870,41.0653,146.01,145.98,6.8464]
[1750822710974,34.22,146.01,145.99,6.8462]
[1750822714581,34.22,146.01,145.95,3.37852187]
[1750822714582,41.0654,146.01,145.98,6.8466]
[1750822716480,3.37852187,146.0,145.94,4.6156]
[1750822716887,10.22462187,146.0,145.94,4.6156]
[1750822717285,10.22462187,146.0,145.94,13.13195876]
[1750822717587,6.8462,145.99,145.97,6.8468]
[1750822718288,6.8459,146.0,145.97,6.8468]
[1750822719182,44.44402187,146.01,145.98,6.8464]
[1750822719482,41.0655,146.01,145.95,3.37852187]
[1750822719883,3.37852187,146.03,145.95,3.37852187]
[1750822720084,3.37852187,146.03,145.97,3.37852187]
[1750822720286,41.0642,146.04,146.01,6.845]
[1750822722787,34.22,146.04,146.02,6.8447]
[1750822723288,34.22,146.04,145.98,2.3233]
[1750822723483,34.22,146.04,146.03,6.8443]
[1750822725484,41.0627,146.07,146.04,6.8437]
[1750822726885,41.0627,146.07,146.05,6.8434]
[1750822726886,34.22,146.07,146.05,6.8434]
[1750822727393,34.22,146.07,146.01,39.96872187]
[1750822727593,34.2,146.11,146.03,3.37852187]
[1750822728486,6.8412,146.1,146.07,6.8422]
[1750822728689,34.2,146.11,146.03,3.37852187]
[1750822729085,34.2,146.11,146.04,2.1963]
[1750822729287,34.2,146.11,146.09,6.8414]
[1750822731493,41.0406,146.11,146.09,6.8414]
[1750822732092,3.37460742,146.1,146.0,2.4191]
[1750822732284,3.37460742,146.06,146.0,2.4191]
[1750822732595,6.8437,146.05,146.02,6.8447]
[1750822735299,3.37460742,146.08,146.03,6.8443]
[1750822735797,6.8432,146.06,146.03,6.8443]
[1750822735992,10.21780742,146.06,146.02,6.8446]
[1750822736198,3.37460742,146.06,146.0,2.4191]
[1750822736496,6.8437,146.05,146.0,2.4191]
[1750822737299,10.21770742,146.06,146.0,2.4191]
[1750822737498,3.37460742,146.06,146.0,2.4191]
[1750822738298,10.21780742,146.06,146.03,6.8441]
[1750822738796,6.8432,146.06,146.03,6.8441]
[1750822739601,6.8426,146.07,146.04,6.8438]
[1750822740095,3.37460742,146.08,146.04,6.8438]
[1750822740302,3.37460742,146.08,146.03,6.8442]
[1750822740703,36.411,146.09,146.01,3.37460742]
[1750822740902,3.37460742,146.08,146.01,3.37460742]
[1750822741296,10.21690742,146.08,146.04,6.8436]
[1750822742605,3.37460742,146.08,146.0,2.4191]
[1750822742905,3.37460742,146.06,145.97,42.17260742]
[1750822743106,34.3,146.05,145.98,2.2888]
[1750822743308,34.3,146.05,146.02,6.8445]
[1750822744201,34.3,146.05,146.03,6.8443]
[1750822746109,41.1435,146.05,146.02,6.8446]
[1750822746603,41.1437,146.05,146.02,6.8446]
[1750822749320,41.1437,146.05,146.03,6.8443]
[1750822750321,41.1437,146.05,146.02,6.8446]
[1750822751421,6.8439,146.04,146.02,6.8446]
[1750822752124,41.1436,146.05,146.02,6.8446]
[1750822753021,6.8439,146.04,146.01,6.8451]
[1750822753424,34.3,146.05,145.99,3.37460742]
[1750822753723,41.1437,146.05,146.02,6.8448]
[1750822753923,34.3,146.05,145.99,3.37460742]
[1750822754312,6.8442,146.04,145.99,3.37460742]
[1750822755013,6.8442,146.04,146.01,6.845]
[1750822758512,41.1436,146.05,146.02,6.8447]
[1750822759528,34.3,146.05,145.99,3.37460742]
[1750822759925,34.3,146.05,146.03,6.844]
[1750822760527,34.3,146.05,146.04,6.8439]
[1750822760927,34.3,146.05,145.99,16.04776673]
[1750822761223,34.3,146.05,146.03,6.844]
[1750822762125,41.1435,146.05,145.99,16.04776673]
[1750822762427,34.3,146.05,145.99,16.04776673]
[1750822763720,37.67460742,146.08,146.01,3.37460742]
[1750822763921,34.3,146.08,146.03,3.37460742]
[1750822764623,632.4808,146.11,146.03,5.60580742]
[1750822764828,632.4808,146.11,146.05,3.37460742]
[1750822764829,4.39401351,146.1,146.05,3.37460742]
[1750822765027,41.1407,146.11,146.08,6.8417]
[1750822765226,4.39217626,146.1,146.08,6.8417]
[1750822765429,41.1407,146.11,146.05,3.37460742]
[1750822765624,4.39217626,146.1,146.05,3.37460742]
[1750822765826,41.1407,146.11,146.05,3.37460742]
[1750822766028,4.39320477,146.1,146.08,6.8417]
[1750822766231,41.1407,146.11,146.08,6.8417]
[1750822766533,4.38749166,146.1,146.09,6.8415]
[1750822768025,34.3,146.11,146.09,6.8415]
[1750822768226,34.3,146.11,146.03,76.90435931]
[1750822768422,41.1407,146.11,146.08,6.8418]
[1750822769731,41.1407,146.11,146.09,6.8415]
[1750822770630,45.52194822,146.11,146.09,6.8415]
[1750822770837,41.1407,146.11,146.09,6.8415]
[1750822771333,45.52194822,146.11,146.09,6.8415]
[1750822771535,41.1407,146.11,146.09,6.8415]
[1750822771735,34.3,146.11,146.09,6.8415]
[1750822772034,38.68124822,146.11,146.09,6.8415]
[1750822772534,34.3,146.11,146.09,6.8415]
[1750822772735,41.1407,146.11,146.09,6.8415]
[1750822773633,34.3,146.11,146.09,6.8415]
[1750822774837,38.69390869,146.11,146.09,6.8415]
[1750822775235,45.53450869,146.11,146.09,6.8415]
[1750822775530,41.1406,146.11,146.09,6.8415]
[1750822775731,4.84809251,146.1,146.09,6.8415]
[1750822776132,38.69390869,146.11,146.09,6.8415]
[1750822777042,34.3,146.11,146.09,6.8415]
[1750822777841,38.69671936,146.11,146.09,6.8415]
[1750822778038,34.3,146.11,146.09,6.8415]
[1750822778439,41.1406,146.11,146.09,6.8415]
[1750822779436,41.1406,146.11,146.08,6.8418]
[1750822780043,41.1406,146.11,146.09,6.8415]
[1750822780242,34.3,146.11,146.09,6.8415]
[1750822781442,41.1406,146.11,146.09,6.8415]
[1750822781937,34.3,146.11,146.04,3.37460742]
[1750822782243,4.85249258,146.1,146.04,3.37460742]
[1750822782445,6.8414,146.1,146.07,6.8422]
[1750822783437,6.8414,146.1,146.08,6.842]
[1750822784346,41.1408,146.11,146.08,6.842]
[1750822787241,45.98214251,146.11,146.08,6.842]
[1750822788449,6.8412,146.1,146.07,6.8422]
[1750822791258,6.8412,146.1,146.08,6.842]
[1750822793053,6.8412,146.1,146.07,6.8422]
[1750822796562,6.8412,146.1,146.08,6.8419]
[1750822797362,41.1408,146.11,146.08,6.8419]
[1750822797554,4.84719064,146.1,146.08,6.8419]
[1750822797754,41.1408,146.11,146.08,6.8419]
[1750822797955,4.84708695,146.1,146.08,6.8419]
[1750822798247,41.1408,146.11,146.08,6.8419]
[1750822798457,4.84708695,146.1,146.08,6.8419]
[1750822798656,41.1408,146.11,146.08,6.8419]
[1750822798850,11.68829017,146.1,146.07,6.8423]
[1750822799056,6.8411,146.1,146.07,6.8423]
[1750822799758,6.8416,146.09,146.06,6.8427]
[1750822803572,6.8421,146.08,146.06,6.8427]
[1750822804863,6.8421,146.08,146.05,2.1583697]